[Event "HUN-chT Youth-Children 2018"]
[Site "Zalakaros"]
[Date "2018.07.26"]
[Round "2"]
[White "Losonczi, Marcell"]
[Black "Lengyel, Andrea"]
[Result "1-0"]
[ECO "B33"]
[WhiteElo "2149"]
[BlackElo "1854"]
[Annotator "NA"]
[PlyCount "91"]
[EventDate "2018.07.26"]
[EventType "team-tourn"]
[EventCountry "HUN"]
[SourceTitle "playchess.com"]
[Source "ChessBase"]
[SourceQuality "1"]
[TimeControl "5400+30"]

1. e4 {[%emt 0:00:00]} c5 {[%emt 0:00:11]} 2. Nf3 {[%emt 0:00:00]} Nc6 {[%emt 0:01:15]} 3. d4 {[%emt 0:00:00]} cxd4 {[%emt 0:00:04]} 4. Nxd4 {[%emt 0:00:00]} Nf6 {[%emt 0:00:05]} 5. Nc3 {[%emt 0:00:06]} e5 {[%emt 0:00:06]} 6. Ndb5 {[%emt 0:00:12]} d6 {[%emt 0:00:05]} 7. Bg5 {[%emt 0:00:17]} a6 {[%emt 0:00:06]} 8. Na3 {[%emt 0:00:06]} b5 {[%emt 0:00:03]} 9. Nd5 {[%emt 0:00:07]} Be7 {[%emt 0:00:06]} 10. Bxf6 {[%emt 0:00:12]} Bxf6 {[%emt 0:00:05]} 11. c3 {[%emt 0:00:11]} Bg5 {[%emt 0:00:15]} 12. Nc2 {[%emt 0:00:10]} O-O {[%emt 0:00:24]} 13. a4 {[%emt 0:00:12]} bxa4 {[%emt 0:00:13]} 14. Rxa4 {[%emt 0:00:07]} a5 15. Bc4 Bd7 {[%emt 0:01:06]} 16. Nce3 {[%emt 0:00:33]} Kh8 {[%emt 0:02:26]} 17. Ra2 {[%emt 0:01:30]} Be6 {[%emt 0:05:42]} 18. O-O Rc8 {[%emt 0:05:14]} 19. b3 {[%emt 0:05:58]} Rb8 {[%emt 0:15:32]} 20. Qd3 {[%emt 0:04:20]} Qd7 {[%emt 0:04:15]} 21. Rfa1 {[%emt 0:07:14]} Qb7 {[%emt 0:05:57]} 22. Rb2 Ra8 {[%emt 0:08:02]} 23. Nf5 {[%emt 0:21:00]} Bxf5 {[%emt 0:17:21]} 24. exf5 {[%emt 0:00:26]} Ne7 {[%emt 0:03:03]} 25. Nxe7 {[%emt 0:01:44]} Qxe7 {[%emt 0:00:08]} 26. Qd5 {[%emt 0:01:27]} Qc7 {[%emt 0:10:20]} 27. Rba2 {[%emt 0:00:51]} h6 {[%emt 0:05:20]} 28. Rxa5 {[%emt 0:01:52]} Rxa5 {[%emt 0:00:08]} 29. Rxa5 {[%emt 0:01:21]} Bd2 {[%emt 0:05:27]} 30. Ra8 {[%emt 0:07:26]} Rxa8 {[%emt 0:00:53]} 31. Qxa8+ {[%emt 0:00:29]} Kh7 {[%emt 0:00:08]} 32. Qf8 {[%emt 0:02:24]} d5 {[%emt 0:00:45]} 33. Bxd5 {[%emt 0:01:08]} Qxc3 {[%emt 0:00:09]} 34. g3 {[%emt 0:00:18]} Be3 {[%emt 0:03:40]} 35. Qxf7 {[%emt 0:10:43]} Qe1+ {[%emt 0:00:50]} 36. Kg2 {[%emt 0:00:07]} Qxf2+ {[%emt 0:00:05]} 37. Kh3 {[%emt 0:00:09]} Qf1+ {[%emt 0:00:58]} 38. Bg2 {[%emt 0:00:18]} Qa6 {[%emt 0:01:21]} 39. f6 {[%emt 0:00:23]} Qc8+ {[%emt 0:01:38]} 40. g4 {[%emt 0:00:06]} Qg8 {[%emt 0:01:13]} 41. Qd7 {[%emt 0:10:59]} Bc5 {[%emt 0:02:17]} 42. Be4+ {[%emt 0:00:25]} Kh8 {[%emt 0:00:11]} 43. f7 {[%emt 0:00:20]} Qf8 {[%emt 0:00:20]} 44. Bg6 {[%emt 0:01:27]} Bd6 {[%emt 0:00:42]} 45. Qe8 {[%emt 0:00:34]} Be7 {[%emt 0:00:48]} 46. Kg2 {[%emt 0:00:16]} 1-0

[Event "HUN-chT Youth-Children 2018"]
[Site "Zalakaros"]
[Date "2018.07.26"]
[Round "2"]
[White "Dibusz, Domonkos"]
[Black "Juhasz, Agoston"]
[Result "1/2-1/2"]
[ECO "B18"]
[WhiteElo "2076"]
[BlackElo "2244"]
[Annotator "NA"]
[PlyCount "143"]
[EventDate "2018.07.26"]
[EventType "team-tourn"]
[EventCountry "HUN"]
[SourceTitle "playchess.com"]
[Source "ChessBase"]
[SourceQuality "1"]
[TimeControl "5400+30"]

1. e4 {[%emt 0:00:00]} c6 {[%emt 0:00:07]} 2. d4 {[%emt 0:00:22]} d5 {[%emt 0:00:07]} 3. Nc3 {[%emt 0:00:00]} dxe4 {[%emt 0:00:08]} 4. Nxe4 {[%emt 0:00:00]} Bf5 {[%emt 0:00:18]} 5. Ng3 {[%emt 0:00:00]} Bg6 {[%emt 0:00:07]} 6. h4 {[%emt 0:00:03]} h6 {[%emt 0:00:06]} 7. f4 {[%emt 0:00:33]} e6 {[%emt 0:00:16]} 8. Nf3 {[%emt 0:00:06]} Bd6 {[%emt 0:00:26]} 9. Ne5 {[%emt 0:00:08]} Ne7 {[%emt 0:00:17]} 10. Nxg6 {[%emt 0:01:44]} Nxg6 {[%emt 0:00:12]} 11. Qf3 {[%emt 0:01:17]} Nxh4 {[%emt 0:01:11]} 12. Qg4 {[%emt 0:00:22]} Be7 {[%emt 0:00:37]} 13. Be3 {[%emt 0:01:10]} Nd7 {[%emt 0:01:16]} 14. O-O-O {[%emt 0:01:21]} Nf6 {[%emt 0:01:40]} 15. Qe2 {[%emt 0:03:35]} Nd5 {[%emt 0:03:56]} 16. c4 {[%emt 0:00:51]} Nxe3 {[%emt 0:03:27]} 17. Qxe3 {[%emt 0:00:03]} g6 {[%emt 0:03:57]} 18. Kb1 {[%emt 0:04:31]} Qc7 {[%emt 0:10:52]} 19. Ne4 {[%emt 0:04:52]} Nf5 {[%emt 0:02:09]} 20. Qf2 {[%emt 0:00:26]} O-O-O {[%emt 0:03:37]} 21. g4 {[%emt 0:01:15]} Nd6 {[%emt 0:02:31]} 22. Nc3 {[%emt 0:00:23]} h5 {[%emt 0:05:04]} 23. d5 {[%emt 0:04:55]} exd5 {[%emt 0:04:29]} 24. cxd5 {[%emt 0:00:09]} Bf6 {[%emt 0:06:47]} 25. dxc6 {[%emt 0:11:16]} Bxc3 {[%emt 0:02:27]} 26. cxb7+ {[%emt 0:00:16]} Qxb7 {[%emt 0:09:38]} 27. Bg2 {[%emt 0:03:57]} Ne4 {[%emt 0:11:07]} 28. Qc2 {[%emt 0:01:06]} Rxd1+ {[%emt 0:03:00]} 29. Rxd1 {[%emt 0:00:22]} Re8 {[%emt 0:01:16]} 30. gxh5 {[%emt 0:11:41]} gxh5 {[%emt 0:06:37]} 31. Ka1 {[%emt 0:03:52]} Qxb2+ {[%emt 0:01:18]} 32. Qxb2 {[%emt 0:00:04]} Bxb2+ {[%emt 0:00:05]} 33. Kxb2 {[%emt 0:00:09]} Nf2 {[%emt 0:04:16]} 34. Rc1+ {[%emt 0:09:06]} Kb8 {[%emt 0:00:35]} 35. Bf1 {[%emt 0:00:15]} Rd8 {[%emt 0:03:02]} 36. Ka3 {[%emt 0:02:23]} Rd6 {[%emt 0:01:36]} 37. Rc3 {[%emt 0:01:52]} Ne4 {[%emt 0:02:47]} 38. Re3 {[%emt 0:02:34]} Nd2 {[%emt 0:03:04]} 39. Be2 {[%emt 0:07:32]} h4 {[%emt 0:02:48]} 40. Rh3 {[%emt 0:02:21]} Rh6 {[%emt 0:01:04]} 41. Bd3 {[%emt 0:00:25]} Rh5 {[%emt 0:01:48]} 42. Kb4 {[%emt 0:00:57]} f5 {[%emt 0:00:32]} 43. Kc3 {[%emt 0:00:48]} Ne4+ {[%emt 0:00:10]} 44. Bxe4 {[%emt 0:00:33]} fxe4 {[%emt 0:00:01]} 45. Kd4 {[%emt 0:00:28]} Ra5 {[%emt 0:01:23]} 46. a3 {[%emt 0:00:50]} Ra4+ {[%emt 0:00:18]} 47. Ke5 {[%emt 0:00:23]} Kc7 {[%emt 0:00:35]} 48. f5 {[%emt 0:02:06]} Kd7 {[%emt 0:00:34]} 49. Kf6 {[%emt 0:09:34]} Ra6+ {[%emt 0:00:47]} 50. Kg7 {[%emt 0:01:53]} Ra5 {[%emt 0:00:07]} 51. Kg6 {[%emt 0:01:12]} Re5 {[%emt 0:00:36]} 52. Rxh4 {[%emt 0:01:22]} e3 {[%emt 0:00:10]} 53. Rd4+ {[%emt 0:00:16]} Kc7 {[%emt 0:00:57]} 54. Rd1 {[%emt 0:00:28]} e2 {[%emt 0:00:01]} 55. Re1 {[%emt 0:00:09]} Kd7 {[%emt 0:00:08]} 56. f6 {[%emt 0:01:09]} Ke8 {[%emt 0:00:04]} 57. a4 {[%emt 0:01:53]} a5 {[%emt 0:00:18]} 58. Kg7 {[%emt 0:00:44]} Rg5+ {[%emt 0:00:23]} 59. Kh6 {[%emt 0:00:04]} Rg2 {[%emt 0:00:23]} 60. Kh5 {[%emt 0:00:21]} Kf7 {[%emt 0:00:24]} 61. Kh4 {[%emt 0:00:12]} Kxf6 {[%emt 0:00:15]} 62. Kh3 {[%emt 0:00:04]} Rf2 {[%emt 0:01:03]} 63. Kg3 {[%emt 0:00:07]} Rf1 {[%emt 0:00:14]} 64. Rxe2 {[%emt 0:00:05]} Ra1 {[%emt 0:01:01]} 65. Re4 {[%emt 0:00:16]} Kf5 {[%emt 0:00:34]} 66. Rf4+ {[%emt 0:00:12]} Ke5 {[%emt 0:00:06]} 67. Rh4 {[%emt 0:00:20]} Kd6 {[%emt 0:01:31]} 68. Kf3 {[%emt 0:00:20]} Kc6 {[%emt 0:00:50]} 69. Ke3 {[%emt 0:00:25]} Rd1 {[%emt 0:00:41]} 70. Rc4+ {[%emt 0:00:29]} Kb6 {[%emt 0:00:22]} 71. Rd4 {[%emt 0:00:15]} Rh1 {[%emt 0:00:39]} 72. Rc4 {[%emt 0:00:18]} 1/2-1/2

[Event "HUN-chT Youth-Children 2018"]
[Site "Zalakaros"]
[Date "2018.07.26"]
[Round "2"]
[White "Kovacsy, Barnabas"]
[Black "Pasztor, Balazs"]
[Result "1/2-1/2"]
[ECO "C85"]
[WhiteElo "2075"]
[BlackElo "2072"]
[Annotator "NA"]
[PlyCount "92"]
[EventDate "2018.07.26"]
[EventType "team-tourn"]
[EventCountry "HUN"]
[SourceTitle "playchess.com"]
[Source "ChessBase"]
[SourceQuality "1"]
[TimeControl "5400+30"]

1. e4 {[%emt 0:00:00]} e5 {[%emt 0:00:19]} 2. Nf3 {[%emt 0:00:00]} Nc6 {[%emt 0:00:09]} 3. Bb5 {[%emt 0:00:00]} a6 {[%emt 0:00:10]} 4. Ba4 {[%emt 0:00:00]} Nf6 {[%emt 0:00:15]} 5. O-O {[%emt 0:00:00]} Be7 {[%emt 0:00:45]} 6. Bxc6 {[%emt 0:00:00]} dxc6 {[%emt 0:01:30]} 7. d3 {[%emt 0:00:06]} Nd7 {[%emt 0:04:31]} 8. Nbd2 {[%emt 0:00:18]} f6 {[%emt 0:14:18]} 9. b3 {[%emt 0:03:43]} Nf8 {[%emt 0:05:11]} 10. Bb2 {[%emt 0:03:53]} c5 {[%emt 0:06:12]} 11. Qe2 {[%emt 0:09:10]} Ne6 {[%emt 0:05:57]} 12. g3 {[%emt 0:10:14]} h5 {[%emt 0:14:00]} 13. Nh4 {[%emt 0:12:12]} g5 {[%emt 0:11:49]} 14. Nf5 {[%emt 0:01:21]} Bf8 {[%emt 0:01:14]} 15. Nc4 {[%emt 0:10:43]} Nd4 {[%emt 0:04:46]} 16. Bxd4 {[%emt 0:01:32]} cxd4 {[%emt 0:02:01]} 17. f4 {[%emt 0:04:22]} gxf4 {[%emt 0:07:59]} 18. gxf4 {[%emt 0:00:15]} Be6 {[%emt 0:01:45]} 19. fxe5 {[%emt 0:04:01]} Bxc4 {[%emt 0:02:27]} 20. bxc4 {[%emt 0:01:03]} fxe5 {[%emt 0:00:45]} 21. Rab1 {[%emt 0:02:50]} Qg5+ {[%emt 0:02:38]} 22. Qg2 {[%emt 0:01:05]} Qxg2+ {[%emt 0:01:14]} 23. Kxg2 {[%emt 0:00:14]} b6 {[%emt 0:01:09]} 24. Kh3 {[%emt 0:02:06]} Kd7 {[%emt 0:04:10]} 25. Nh4 {[%emt 0:02:24]} Ke6 {[%emt 0:00:58]} 26. Rf5 {[%emt 0:00:39]} Rh6 {[%emt 0:01:47]} 27. Rbf1 {[%emt 0:01:48]} Be7 {[%emt 0:01:27]} 28. Rf7 {[%emt 0:02:26]} Bxh4 {[%emt 0:02:12]} 29. Kxh4 {[%emt 0:00:23]} Rg8 {[%emt 0:01:15]} 30. Rxc7 {[%emt 0:01:27]} Kd6 {[%emt 0:00:53]} 31. Rff7 {[%emt 0:01:16]} Rhg6 {[%emt 0:00:50]} 32. Rfd7+ {[%emt 0:00:57]} Ke6 {[%emt 0:00:09]} 33. Rd5 {[%emt 0:00:59]} Rg4+ {[%emt 0:01:18]} 34. Kh3 {[%emt 0:00:11]} Rf4 {[%emt 0:00:30]} 35. Rc6+ {[%emt 0:02:17]} Ke7 {[%emt 0:00:41]} 36. Rxe5+ {[%emt 0:04:34]} Kd7 {[%emt 0:00:15]} 37. Rh6 {[%emt 0:00:46]} Rf3+ {[%emt 0:00:41]} 38. Kh4 {[%emt 0:00:19]} Rg2 {[%emt 0:00:27]} 39. h3 {[%emt 0:07:10]} Rgg3 {[%emt 0:00:38]} 40. Rd5+ {[%emt 0:02:25]} Ke7 {[%emt 0:00:26]} 41. Re5+ {[%emt 0:01:28]} Kd7 {[%emt 0:00:36]} 42. Rhxh5 {[%emt 0:06:33]} Rxh3+ {[%emt 0:00:14]} 43. Kg5 {[%emt 0:00:04]} Rhg3+ {[%emt 0:00:13]} 44. Kh4 {[%emt 0:02:21]} Rh3+ {[%emt 0:00:06]} 45. Kg5 {[%emt 0:00:24]} Rhg3+ {[%emt 0:00:08]} 46. Kh4 {[%emt 0:00:35]} Rh3+ {[%emt 0:00:09]} 1/2-1/2

[Event "HUN-chT Youth-Children 2018"]
[Site "Zalakaros"]
[Date "2018.07.26"]
[Round "2"]
[White "Pasti, Aron"]
[Black "Koteljarto, Aron"]
[Result "1-0"]
[ECO "B10"]
[WhiteElo "2069"]
[BlackElo "1404"]
[Annotator "NA"]
[PlyCount "100"]
[EventDate "2018.07.26"]
[EventType "team-tourn"]
[EventCountry "HUN"]
[SourceTitle "playchess.com"]
[Source "ChessBase"]
[SourceQuality "1"]
[TimeControl "5400+30"]

1. e4 {[%emt 0:00:00]} c6 {[%emt 0:00:19]} 2. Nf3 {[%emt 0:00:00]} d5 {[%emt 0:00:05]} 3. Nc3 {[%emt 0:00:00]} dxe4 {[%emt 0:00:17]} 4. Nxe4 {[%emt 0:00:00]} Nf6 {[%emt 0:00:06]} 5. Nxf6+ {[%emt 0:00:05]} exf6 {[%emt 0:00:07]} 6. Bc4 {[%emt 0:00:12]} Be7 {[%emt 0:00:14]} 7. O-O {[%emt 0:00:13]} O-O {[%emt 0:00:06]} 8. h3 {[%emt 0:00:51]} Nd7 {[%emt 0:00:21]} 9. d4 {[%emt 0:00:19]} Nb6 {[%emt 0:00:28]} 10. Bb3 {[%emt 0:00:04]} Bd7 {[%emt 0:06:21]} 11. c3 {[%emt 0:00:28]} Qc7 {[%emt 0:01:46]} 12. Qd3 {[%emt 0:04:02]} Rfe8 {[%emt 0:19:01]} 13. Bd2 {[%emt 0:01:45]} Bf8 {[%emt 0:00:37]} 14. Rfe1 {[%emt 0:02:00]} g6 {[%emt 0:00:32]} 15. Nh4 {[%emt 0:02:38]} Bg7 {[%emt 0:00:09]} 16. Re3 {[%emt 0:13:12]} Rxe3 {[%emt 0:00:21]} 17. fxe3 {[%emt 0:01:15]} f5 {[%emt 0:01:25]} 18. Nf3 {[%emt 0:07:11]} Re8 {[%emt 0:00:21]} 19. a4 {[%emt 0:05:09]} Nc8 {[%emt 0:02:26]} 20. Be1 {[%emt 0:04:48]} Be6 {[%emt 0:01:32]} 21. c4 {[%emt 0:05:43]} Bd7 {[%emt 0:02:02]} 22. Bf2 {[%emt 0:05:49]} a6 {[%emt 0:01:54]} 23. Rd1 {[%emt 0:03:17]} Na7 24. Qd2 {[%emt 0:09:15]} Rd8 {[%emt 0:03:59]} 25. d5 {[%emt 0:03:31]} c5 {[%emt 0:00:12]} 26. Rb1 {[%emt 0:03:51]} Nc8 {[%emt 0:00:19]} 27. Bc2 {[%emt 0:01:58]} Re8 28. a5 Bh6 {[%emt 0:01:14]} 29. Re1 {[%emt 0:06:45]} Nd6 30. Bg3 {[%emt 0:04:31]} Bc8 {[%emt 0:02:30]} 31. Qc3 {[%emt 0:05:57]} Qe7 {[%emt 0:01:14]} 32. Ba4 {[%emt 0:04:04]} Rf8 {[%emt 0:05:35]} 33. Bxd6 {[%emt 0:02:05]} Qxd6 {[%emt 0:00:13]} 34. Qe5 {[%emt 0:00:42]} Rd8 {[%emt 0:00:26]} 35. Qxd6 {[%emt 0:00:12]} Rxd6 {[%emt 0:00:11]} 36. Ne5 {[%emt 0:00:25]} Bg7 37. Nd3 {[%emt 0:00:48]} Kf8 {[%emt 0:01:43]} 38. Re2 {[%emt 0:00:09]} f4 {[%emt 0:01:13]} 39. Nxf4 {[%emt 0:03:13]} Ke7 {[%emt 0:01:28]} 40. Nd3 {[%emt 0:00:22]} Bf5 {[%emt 0:01:07]} 41. Nxc5 {[%emt 0:00:51]} Bc8 {[%emt 0:00:14]} 42. Ne4 {[%emt 0:00:23]} Rd8 {[%emt 0:00:21]} 43. d6+ {[%emt 0:00:10]} Kf8 {[%emt 0:00:10]} 44. Rd2 {[%emt 0:00:56]} Bf5 {[%emt 0:00:09]} 45. Nc5 {[%emt 0:00:07]} Bf6 {[%emt 0:01:16]} 46. Nxb7 {[%emt 0:02:54]} Rb8 {[%emt 0:00:13]} 47. Bc6 {[%emt 0:00:33]} Bg5 {[%emt 0:00:17]} 48. Kf2 {[%emt 0:00:09]} Rc8 {[%emt 0:00:19]} 49. Bf3 {[%emt 0:00:23]} Ke8 {[%emt 0:00:44]} 50. d7+ {[%emt 0:00:18]} Kf8 1-0

[Event "HUN-chT Youth-Children 2018"]
[Site "Zalakaros"]
[Date "2018.07.26"]
[Round "2"]
[White "Fule, Simon"]
[Black "Gombocz, Zsofia"]
[Result "1/2-1/2"]
[ECO "C88"]
[WhiteElo "2061"]
[BlackElo "1996"]
[Annotator "NA"]
[PlyCount "67"]
[EventDate "2018.07.26"]
[EventType "team-tourn"]
[EventCountry "HUN"]
[SourceTitle "playchess.com"]
[Source "ChessBase"]
[SourceQuality "1"]
[TimeControl "5400+30"]

1. e4 {[%emt 0:00:28]} e5 {[%emt 0:00:09]} 2. Nf3 {[%emt 0:00:04]} Nc6 {[%emt 0:00:10]} 3. Bb5 {[%emt 0:00:05]} a6 {[%emt 0:00:07]} 4. Ba4 {[%emt 0:00:04]} Nf6 {[%emt 0:00:10]} 5. O-O {[%emt 0:00:06]} Be7 {[%emt 0:00:17]} 6. Re1 {[%emt 0:00:06]} b5 {[%emt 0:00:15]} 7. Bb3 {[%emt 0:00:20]} O-O {[%emt 0:00:27]} 8. a4 {[%emt 0:00:12]} Bb7 {[%emt 0:00:52]} 9. d3 {[%emt 0:00:41]} d6 {[%emt 0:01:11]} 10. c3 {[%emt 0:00:55]} Na5 {[%emt 0:01:30]} 11. Bc2 {[%emt 0:00:27]} c5 {[%emt 0:01:15]} 12. Nbd2 {[%emt 0:02:38]} Re8 {[%emt 0:02:09]} 13. Nf1 {[%emt 0:01:41]} h6 {[%emt 0:01:42]} 14. Ng3 {[%emt 0:02:22]} Bf8 {[%emt 0:04:26]} 15. d4 {[%emt 0:03:10]} Qc7 {[%emt 0:04:14]} 16. d5 {[%emt 0:03:22]} g6 {[%emt 0:08:17]} 17. h3 {[%emt 0:09:27]} b4 {[%emt 0:03:41]} 18. cxb4 {[%emt 0:07:20]} cxb4 {[%emt 0:00:12]} 19. Bd2 {[%emt 0:00:13]} Nc4 {[%emt 0:10:19]} 20. b3 {[%emt 0:10:39]} Nxd2 {[%emt 0:04:21]} 21. Nxd2 {[%emt 0:00:06]} a5 {[%emt 0:01:53]} 22. Bd3 {[%emt 0:04:26]} Ba6 {[%emt 0:04:22]} 23. Bxa6 {[%emt 0:03:55]} Rxa6 {[%emt 0:00:09]} 24. Rc1 {[%emt 0:00:25]} Qb7 {[%emt 0:02:02]} 25. Nc4 {[%emt 0:08:33]} Nd7 {[%emt 0:06:02]} 26. Qf3 {[%emt 0:08:38]} Nc5 {[%emt 0:08:28]} 27. Ne2 {[%emt 0:01:41]} Qd7 {[%emt 0:06:41]} 28. g4 {[%emt 0:01:47]} Bg7 {[%emt 0:03:18]} 29. Ng3 {[%emt 0:06:53]} Rc8 {[%emt 0:07:14]} 30. Red1 {[%emt 0:05:36]} Qe7 {[%emt 0:05:44]} 31. Nd2 {[%emt 0:05:21]} Ra7 {[%emt 0:02:51]} 32. Kg2 {[%emt 0:00:48]} Rac7 {[%emt 0:00:48]} 33. Rc4 {[%emt 0:01:40]} Qg5 {[%emt 0:00:58]} 34. Rc2 {[%emt 0:03:05]} 1/2-1/2

[Event "HUN-chT Youth-Children 2018"]
[Site "Zalakaros"]
[Date "2018.07.26"]
[Round "2"]
[White "Kelemen, David"]
[Black "Pribelszky, Bence"]
[Result "1/2-1/2"]
[ECO "B40"]
[WhiteElo "2055"]
[BlackElo "2245"]
[Annotator "NA"]
[PlyCount "103"]
[EventDate "2018.07.26"]
[EventType "team-tourn"]
[EventCountry "HUN"]
[SourceTitle "playchess.com"]
[Source "ChessBase"]
[SourceQuality "1"]
[TimeControl "5400+30"]

1. e4 {[%emt 0:00:00]} c5 {[%emt 0:05:37]} 2. Nf3 {[%emt 0:00:00]} e6 {[%emt 0:00:14]} 3. c4 {[%emt 0:00:00]} Nc6 {[%emt 0:00:20]} 4. Nc3 {[%emt 0:00:07]} Nf6 {[%emt 0:00:17]} 5. Be2 {[%emt 0:00:15]} d5 {[%emt 0:00:26]} 6. exd5 {[%emt 0:00:23]} exd5 {[%emt 0:00:11]} 7. d4 {[%emt 0:00:04]} cxd4 {[%emt 0:04:49]} 8. Nxd4 {[%emt 0:00:27]} Bc5 {[%emt 0:00:34]} 9. Nxc6 {[%emt 0:01:02]} bxc6 {[%emt 0:00:11]} 10. cxd5 {[%emt 0:02:13]} cxd5 {[%emt 0:00:24]} 11. O-O {[%emt 0:00:31]} O-O {[%emt 0:03:43]} 12. Bf3 {[%emt 0:01:21]} Be6 {[%emt 0:05:39]} 13. Bg5 {[%emt 0:05:12]} Rc8 {[%emt 0:19:04]} 14. Bxf6 {[%emt 0:15:58]} Qxf6 {[%emt 0:00:35]} 15. Bxd5 {[%emt 0:03:44]} Bxd5 {[%emt 0:12:54]} 16. Qxd5 {[%emt 0:00:16]} Rfd8 {[%emt 0:08:06]} 17. Qh5 {[%emt 0:01:24]} Bd4 {[%emt 0:06:17]} 18. Ne4 {[%emt 0:04:21]} Qf4 {[%emt 0:10:26]} 19. Qf3 {[%emt 0:08:06]} Qxf3 {[%emt 0:05:30]} 20. gxf3 {[%emt 0:00:05]} Rc2 {[%emt 0:03:47]} 21. Kg2 {[%emt 0:09:22]} f5 {[%emt 0:07:27]} 22. Ng5 {[%emt 0:00:39]} Bf6 {[%emt 0:02:25]} 23. Nh3 {[%emt 0:01:06]} Rxb2 {[%emt 0:00:49]} 24. a4 {[%emt 0:00:38]} Rdd2 {[%emt 0:01:57]} 25. Rab1 {[%emt 0:02:54]} h6 {[%emt 0:00:45]} 26. Rxb2 {[%emt 0:02:51]} Rxb2 {[%emt 0:00:24]} 27. Rc1 {[%emt 0:00:34]} Rb4 {[%emt 0:00:35]} 28. a5 {[%emt 0:00:32]} Rb5 {[%emt 0:00:21]} 29. a6 {[%emt 0:00:25]} Rb6 {[%emt 0:00:21]} 30. Rc5 {[%emt 0:00:06]} Rxa6 {[%emt 0:00:32]} 31. Rxf5 {[%emt 0:00:02]} Ra2 {[%emt 0:00:43]} 32. Nf4 {[%emt 0:02:04]} Bd4 {[%emt 0:00:28]} 33. Ne6 {[%emt 0:01:07]} Bxf2 {[%emt 0:00:35]} 34. Rf8+ {[%emt 0:00:43]} Kh7 {[%emt 0:00:02]} 35. Rf7 {[%emt 0:00:48]} Bd4+ {[%emt 0:00:32]} 36. Kg3 {[%emt 0:00:07]} Bf6 {[%emt 0:00:35]} 37. h4 {[%emt 0:03:38]} Ra4 {[%emt 0:00:52]} 38. h5 {[%emt 0:00:12]} Ra5 {[%emt 0:00:30]} 39. Rb7 {[%emt 0:01:20]} Rxh5 {[%emt 0:00:30]} 40. Rxa7 {[%emt 0:00:26]} Rf5 {[%emt 0:00:30]} 41. Ra4 {[%emt 0:11:21]} h5 {[%emt 0:00:23]} 42. Re4 {[%emt 0:01:06]} Kh6 {[%emt 0:00:24]} 43. Nd4 {[%emt 0:01:31]} Rd5 {[%emt 0:00:26]} 44. Ne2 {[%emt 0:01:27]} Be5+ {[%emt 0:00:34]} 45. Kh3 {[%emt 0:01:01]} Bd6 {[%emt 0:00:44]} 46. Ng3 {[%emt 0:01:15]} g6 {[%emt 0:00:17]} 47. Re6 {[%emt 0:01:18]} Bf4 {[%emt 0:00:40]} 48. Re4 {[%emt 0:00:23]} Bb8 {[%emt 0:00:29]} 49. Rb4 {[%emt 0:01:14]} Bc7 {[%emt 0:00:32]} 50. Rc4 {[%emt 0:00:05]} Rd7 {[%emt 0:00:28]} 51. Rc6 {[%emt 0:02:25]} Kg5 {[%emt 0:00:34]} 52. Ne4+ {[%emt 0:00:15]} 1/2-1/2

[Event "HUN-chT Youth-Children 2018"]
[Site "Zalakaros"]
[Date "2018.07.26"]
[Round "2"]
[White "Virag, Balint"]
[Black "Balogh, Marton"]
[Result "1-0"]
[ECO "B01"]
[WhiteElo "2051"]
[BlackElo "1973"]
[Annotator "NA"]
[PlyCount "93"]
[EventDate "2018.07.26"]
[EventType "team-tourn"]
[EventCountry "HUN"]
[SourceTitle "playchess.com"]
[Source "ChessBase"]
[SourceQuality "1"]
[TimeControl "5400+30"]

1. e4 {[%emt 0:00:00]} d5 {[%emt 0:00:32]} 2. exd5 {[%emt 0:00:00]} Qxd5 {[%emt 0:00:12]} 3. Nc3 {[%emt 0:00:50]} Qa5 {[%emt 0:00:06]} 4. d4 {[%emt 0:00:06]} Nf6 {[%emt 0:00:04]} 5. Bd2 {[%emt 0:00:47]} Bg4 {[%emt 0:00:22]} 6. Be2 {[%emt 0:00:20]} Bxe2 {[%emt 0:00:07]} 7. Qxe2 {[%emt 0:02:42]} c6 {[%emt 0:05:04]} 8. Nf3 {[%emt 0:00:23]} e6 {[%emt 0:02:35]} 9. Ne4 {[%emt 0:02:06]} Qf5 {[%emt 0:09:57]} 10. Nxf6+ {[%emt 0:01:12]} gxf6 {[%emt 0:00:34]} 11. O-O-O {[%emt 0:02:02]} Rg8 {[%emt 0:03:51]} 12. h3 {[%emt 0:02:25]} Na6 {[%emt 0:23:02]} 13. a3 {[%emt 0:05:06]} O-O-O {[%emt 0:01:25]} 14. Rhg1 {[%emt 0:06:46]} Nc7 {[%emt 0:06:37]} 15. Kb1 {[%emt 0:09:45]} Qb5 {[%emt 0:03:48]} 16. Qxb5 {[%emt 0:01:38]} Nxb5 {[%emt 0:00:29]} 17. Be3 {[%emt 0:04:48]} Be7 {[%emt 0:01:42]} 18. g4 {[%emt 0:02:07]} b6 {[%emt 0:05:43]} 19. Kc1 {[%emt 0:06:08]} c5 {[%emt 0:03:54]} 20. dxc5 {[%emt 0:01:07]} Bxc5 {[%emt 0:00:31]} 21. Bxc5 {[%emt 0:00:33]} bxc5 {[%emt 0:00:12]} 22. Rxd8+ {[%emt 0:05:30]} Kxd8 {[%emt 0:01:18]} 23. Kd2 {[%emt 0:01:12]} Ke7 {[%emt 0:03:52]} 24. Ke2 {[%emt 0:01:52]} Rd8 {[%emt 0:02:03]} 25. g5 {[%emt 0:13:21]} e5 {[%emt 0:16:35]} 26. a4 {[%emt 0:04:06]} Nd4+ {[%emt 0:01:56]} 27. Nxd4 {[%emt 0:00:08]} Rxd4 {[%emt 0:00:42]} 28. b3 {[%emt 0:02:33]} f5 {[%emt 0:00:52]} 29. a5 {[%emt 0:05:27]} Kd7 {[%emt 0:04:02]} 30. c3 {[%emt 0:03:02]} Rd6 {[%emt 0:02:17]} 31. b4 {[%emt 0:02:39]} cxb4 {[%emt 0:00:41]} 32. cxb4 {[%emt 0:00:01]} Rd4 {[%emt 0:00:22]} 33. Rb1 {[%emt 0:01:00]} Kc6 {[%emt 0:01:00]} 34. Rc1+ {[%emt 0:00:25]} Kb7 {[%emt 0:00:28]} 35. Rc5 {[%emt 0:00:18]} Re4+ {[%emt 0:00:27]} 36. Kf3 {[%emt 0:00:46]} Re1 {[%emt 0:00:35]} 37. Rb5+ {[%emt 0:03:05]} Kc6 {[%emt 0:00:27]} 38. Rb8 {[%emt 0:00:42]} Rb1 {[%emt 0:00:29]} 39. Rf8 {[%emt 0:00:39]} Rxb4 {[%emt 0:00:33]} 40. Rxf7 {[%emt 0:00:02]} Rb7 {[%emt 0:00:32]} 41. Rxb7 {[%emt 0:01:21]} Kxb7 {[%emt 0:00:01]} 42. h4 {[%emt 0:00:07]} Kc6 {[%emt 0:00:15]} 43. h5 {[%emt 0:00:02]} Kd6 {[%emt 0:00:14]} 44. g6 {[%emt 0:00:02]} hxg6 {[%emt 0:00:51]} 45. h6 {[%emt 0:00:01]} g5 {[%emt 0:00:31]} 46. h7 {[%emt 0:00:08]} g4+ {[%emt 0:00:04]} 47. Kg3 {[%emt 0:00:22]} 1-0